bitfinex/quotes_ETHUSD_20251010
["timestamp","ask_amount","ask_price","bid_price","bid_amount"]
[1760122220876,0.88463256,4072.8,4071.0,2.45639063]
[1760122221075,0.88463256,4072.8,4071.1,14.5]
[1760122221304,3.421,4072.5,4071.1,14.5]
[1760122221604,30.0,4072.3,4071.1,14.5]
[1760122221803,0.52863256,4072.2,4071.1,14.5]
[1760122221983,0.01279619,4072.2,4071.1,14.5]
[1760122222494,0.01279619,4072.2,4071.2,0.6336]
[1760122222802,0.01279619,4072.3,4071.2,0.6336]
[1760122223391,0.01279619,4072.3,4071.3,3.756]
[1760122223706,0.01279619,4072.3,4068.2,2.45807122]
[1760122223707,0.2106,4071.2,4068.2,2.45807122]
[1760122223904,23.056,4071.0,4069.0,3.756]
[1760122224204,0.11289619,4070.9,4069.1,15.14959]
[1760122224430,1.92,4070.7,4069.2,0.02457485]
[1760122224582,0.11289619,4070.6,4069.1,14.5]
[1760122224786,0.11289619,4070.6,4069.2,2.45743478]
[1760122224983,0.51603352,4071.0,4069.9,2.45703554]
[1760122225194,0.01279619,4070.9,4069.8,3.758]
[1760122225504,0.01279619,4070.9,4069.9,0.6336]
[1760122226083,0.1001,4070.8,4068.3,1.92]
[1760122226411,14.1766,4071.2,4068.3,1.92]
[1760122226412,0.1224,4070.4,4069.8,0.6336]
[1760122226785,0.1224,4070.4,4069.8,3.09070645]
[1760122226985,0.1224,4070.4,4069.8,0.6336]
[1760122227204,0.1001,4070.8,4069.2,2.92143712]
[1760122227434,0.1224,4070.1,4069.5,0.1224]
[1760122227923,0.01279619,4070.0,4069.5,0.1224]
[1760122228539,0.2238,4069.9,4069.1,14.5]
[1760122228734,0.1224,4069.6,4069.1,14.5]
[1760122229399,0.1224,4069.6,4069.1,16.95753452]
[1760122229636,0.1224,4069.6,4069.2,0.6336]
[1760122229837,0.1224,4069.6,4069.2,3.0910827]
[1760122230137,0.1224,4069.6,4069.2,3.09107398]
[1760122230343,0.1224,4069.6,4069.2,0.6336]
[1760122230718,0.01279619,4070.3,4069.3,2.94598829]
[1760122230912,2.039,4070.6,4069.4,4.3926]
[1760122231130,0.1224,4070.4,4070.0,2.45699248]
[1760122231302,0.1224,4070.4,4069.8,0.6336]
[1760122231502,0.22339619,4071.2,4070.3,2.45682136]
[1760122231734,0.1224,4070.7,4070.3,0.6336]
[1760122232040,0.1224,4071.2,4070.6,0.6336]
[1760122232247,0.1224,4071.2,4070.8,0.6336]
[1760122232443,0.1224,4071.2,4070.7,14.5]
[1760122232647,0.01279619,4071.1,4070.6,3.759]
[1760122232843,0.1224,4071.2,4070.6,3.759]
[1760122233001,0.01279619,4071.1,4070.4,3.759]
[1760122233208,0.1224,4070.8,4070.7,14.5]
[1760122233419,0.1224,4070.8,4070.1,0.1224]
[1760122233739,0.1224,4070.8,4068.0,2.68565305]
[1760122233740,1.92,4071.3,4069.8,0.621]
[1760122233903,5.806,4071.4,4070.2,0.1224]
[1760122233904,0.1224,4070.9,4070.2,0.1224]
[1760122234105,5.806,4071.4,4071.1,0.6336]
[1760122234106,0.1224,4071.4,4071.1,0.6336]
[1760122234437,0.1224,4071.7,4071.1,0.6336]
[1760122234600,0.01279619,4071.6,4071.2,2.45625228]
[1760122234801,0.01279619,4071.6,4071.1,3.08992438]
[1760122235002,0.01279619,4071.6,4071.1,0.6336]
[1760122235199,0.01279619,4071.6,4071.1,4.3926]
[1760122235414,0.1224,4071.7,4071.3,0.6336]
[1760122235626,0.1224,4071.7,4071.4,0.48856157]
[1760122235848,0.1224,4071.7,4071.4,0.02456157]
[1760122236055,0.5,4072.0,4071.2,3.08986418]
[1760122236218,0.1224,4071.9,4071.4,0.65816157]
[1760122236422,0.1224,4071.9,4071.4,3.11431036]
[1760122236653,0.1224,4071.9,4071.4,0.02456157]
[1760122236868,0.1224,4071.9,4071.4,3.1142965]
[1760122237028,0.5,4072.0,4071.9,0.6336]
[1760122237227,0.5,4072.0,4071.9,3.55345598]
[1760122237434,0.025,4072.0,4071.9,18.05345598]
[1760122237870,0.01279619,4074.0,4072.9,0.6336]
[1760122238030,0.42,4073.9,4073.4,2.45494846]
[1760122238228,0.01279619,4074.3,4073.3,0.6336]
[1760122238464,0.01279619,4074.3,4073.4,0.6336]
[1760122238660,0.01279619,4074.3,4073.4,3.08855163]
[1760122238964,0.01279619,4074.3,4073.4,0.6336]
[1760122239657,0.4658,4074.2,4073.3,14.5]
[1760122239821,0.47859619,4074.1,4072.4,3.758]
[1760122240024,1.17257069,4074.1,4072.5,0.6336]
[1760122240219,1.17257069,4074.1,4072.7,14.5]
[1760122240220,0.64327108,4073.9,4072.7,14.5]
[1760122240427,0.01279619,4073.8,4073.1,0.6336]
[1760122240727,0.4646,4073.8,4072.8,0.6336]
[1760122241029,0.2254,4073.9,4071.8,0.464]
[1760122241030,5.26779619,4073.7,4071.8,2.91991332]
[1760122241241,0.99389961,4073.6,4071.9,0.6336]
[1760122241561,0.4646,4073.5,4072.1,0.6336]
[1760122241871,0.51650342,4073.6,4072.2,8.46216978]
[1760122242175,0.01279619,4073.8,4073.1,2.45513072]
[1760122242330,0.01279619,4074.1,4073.3,0.6336]
[1760122242525,0.01279619,4074.1,4073.4,0.02454951]
[1760122242730,0.01279619,4074.1,4073.3,0.6336]
[1760122243527,0.01279619,4074.2,4073.4,0.02454951]
[1760122243757,0.01279619,4074.2,4073.5,0.6336]
[1760122243957,0.51650342,4074.4,4073.8,0.6336]
[1760122244126,0.01279619,4074.5,4073.8,3.11285065]
[1760122244329,0.01279619,4074.5,4073.8,0.6581471]
[1760122244541,3.631,4074.8,4073.8,0.6581471]
[1760122244542,0.52929961,4074.7,4073.8,3.11284383]
[1760122244743,0.4646,4074.6,4072.7,0.464]
[1760122244930,0.01279619,4074.5,4073.3,0.6336]
[1760122245132,0.8582661,4075.2,4073.3,0.6336]
[1760122245133,0.64327108,4075.5,4073.9,0.6336]
[1760122245376,0.01279619,4075.4,4074.1,0.6336]
[1760122245581,0.01279619,4075.4,4074.3,0.6336]
[1760122246248,0.01279619,4075.7,4074.3,0.6336]
[1760122246661,0.01279619,4075.7,4074.2,14.5]
[1760122246662,30.0,4075.5,4074.2,14.5]
[1760122246859,0.64327108,4075.3,4074.2,14.5]
[1760122247060,0.1224,4074.4,4074.2,14.5]
[1760122247260,2.046,4074.8,4073.5,1.0782]
[1760122247430,0.64327108,4075.5,4073.7,0.6336]
[1760122247634,3.03516727,4075.4,4073.9,0.6336]
[1760122247846,6.2611,4075.3,4073.9,0.6336]
[1760122248041,0.53066088,4075.2,4073.9,0.6336]
[1760122248541,0.53066088,4075.2,4074.0,14.5]
[1760122248743,3.0434,4075.1,4074.0,14.5]
[1760122248930,0.01279619,4075.0,4074.0,14.5]
[1760122249154,0.01279619,4075.0,4073.6,0.6336]
[1760122249361,0.01279619,4075.0,4073.6,3.08842539]
[1760122249544,0.01279619,4075.0,4073.7,2.45476245]
[1760122249749,0.01279619,4075.0,4073.8,14.5]
[1760122250158,0.01279619,4075.0,4073.8,16.95470678]
[1760122250364,5.8,4074.9,4073.8,14.5]
[1760122250566,0.01279619,4074.8,4073.9,0.6336]
[1760122251605,2.05879619,4075.0,4074.2,2.45444726]
[1760122251802,2.05879619,4075.0,4074.1,0.6336]
[1760122252311,2.05879619,4075.0,4074.2,0.6336]
[1760122252666,0.01279619,4075.0,4074.1,0.6336]
[1760122252989,0.01279619,4075.6,4075.1,0.6336]
[1760122253655,5.798,4075.9,4074.6,0.6336]
[1760122253857,0.01279619,4075.8,4074.9,0.6336]
[1760122254189,0.01279619,4075.8,4075.1,0.6336]
[1760122254389,1.93279619,4075.8,4075.1,0.6336]
[1760122255596,1.93279619,4075.8,4075.0,14.5]
[1760122255597,2.61889619,4075.8,4075.0,14.5]
[1760122255902,0.4634,4075.7,4074.5,0.6336]
[1760122256103,0.4634,4075.7,4073.6,2.046]
[1760122256104,1.93279619,4075.6,4074.6,2.45421356]
[1760122256304,1.93279619,4075.6,4074.8,0.6336]
[1760122256692,0.4634,4075.5,4073.8,0.6336]
[1760122256904,0.47619619,4075.4,4073.2,2.4089]
[1760122257118,0.4634,4075.3,4073.9,2.45460201]
[1760122257420,0.1224,4074.6,4074.0,0.6336]
[1760122257716,0.1224,4074.6,4073.9,0.1224]
[1760122257924,0.01279619,4074.5,4073.9,0.1224]
[1760122258232,0.01279619,4074.5,4074.0,0.6336]
[1760122258425,0.47619619,4074.5,4074.0,0.6336]
[1760122258608,0.01279619,4074.5,4074.0,0.6336]
[1760122258809,0.01279619,4074.5,4073.9,0.1224]
[1760122259013,0.01279619,4074.5,4072.8,15.40962659]
[1760122259014,0.47619619,4074.5,4071.8,17.8655399]
[1760122259196,0.47619619,4074.5,4072.8,0.1224]
[1760122259395,0.1224,4073.5,4072.8,0.1224]
[1760122260020,3.749,4073.8,4072.5,14.5]
[1760122260021,0.01279619,4073.4,4072.5,14.5]
[1760122260329,0.1224,4073.2,4072.5,14.6224]
[1760122261083,0.01279619,4073.1,4072.5,14.6224]
[1760122261311,0.4634,4073.0,4072.1,2.45573536]
[1760122261498,0.1224,4072.8,4072.1,0.1224]
[1760122261709,0.1224,4072.8,4072.3,2.45561026]
[1760122261710,0.01279619,4072.7,4072.3,2.45561026]
[1760122262053,1.92,4073.5,4072.3,2.45561026]
[1760122262054,3.8514,4073.4,4072.8,0.6336]
[1760122262334,0.01279619,4073.3,4072.8,0.6336]
[1760122262533,3.8514,4073.4,4073.0,0.6336]
[1760122262898,0.01279619,4073.3,4072.9,0.6336]
[1760122263102,0.1224,4073.4,4072.9,0.6336]
[1760122263298,0.1224,4073.4,4072.8,3.08890682]
[1760122263503,0.1224,4073.4,4072.8,0.6336]
[1760122263703,0.1224,4073.4,4073.3,3.0886119]
[1760122263905,0.1224,4073.9,4073.4,0.6336]
[1760122264308,0.5858,4073.9,4073.4,0.6336]
[1760122264722,7.13,4073.8,4073.4,0.6336]
[1760122264950,7.2524,4073.9,4073.4,3.0885404]
[1760122265245,0.53227194,4073.8,4073.4,0.6336]
[1760122265452,0.6861,4073.7,4072.3,0.50357834]
[1760122265629,7.14279619,4073.6,4072.4,3.11525169]
[1760122265829,0.1224,4073.4,4072.8,0.6336]
[1760122266036,0.1224,4073.4,4072.8,3.08886901]
[1760122266429,0.01279619,4073.3,4072.8,0.6336]
[1760122266629,7.13,4073.2,4072.8,0.6336]
[1760122267036,0.01279619,4073.1,4072.2,0.6336]
[1760122267346,0.65565157,4073.2,4072.6,0.6336]
[1760122267545,0.13519619,4073.2,4072.8,0.6336]
[1760122267708,7.13,4073.3,4073.0,0.6336]
[1760122268445,7.13,4073.3,4073.1,3.08872835]
[1760122268646,7.13,4073.3,4072.9,0.6336]
[1760122268848,7.13,4073.3,4072.9,3.08885024]
[1760122269140,7.13,4073.3,4072.9,3.08883729]
[1760122269313,31.92,4072.7,4068.1,1.49028327]
[1760122269558,0.217,4070.7,4068.7,0.115]
[1760122269755,5.89979619,4070.7,4068.7,2.57273602]
[1760122269987,1.92,4070.6,4068.7,0.5879]
[1760122270183,0.64983116,4069.2,4068.7,2.81247452]
[1760122270492,0.5202295,4069.1,4068.8,0.6336]
[1760122270659,0.5202295,4069.0,4068.7,0.115]
[1760122270859,0.5202295,4068.9,4068.7,2.57277708]
[1760122271059,0.5202295,4068.8,4068.7,4.49277708]
[1760122271256,2.046,4069.6,4069.1,2.45748943]
[1760122271257,0.64983116,4069.6,4069.1,2.45748943]
[1760122271465,0.51766881,4069.5,4069.2,2.93037134]
[1760122271786,0.51766881,4069.4,4069.3,3.0910251]
[1760122271985,0.51766881,4069.4,4069.3,3.5639251]
[1760122272191,0.51766881,4069.6,4069.5,3.09090433]
[1760122272504,1.7328831,4071.2,4069.5,3.09090433]
[1760122272505,0.64983116,4071.4,4070.5,2.45670065]
[1760122272794,0.51714468,4071.3,4071.2,0.6336]
[1760122273168,0.51714468,4071.4,4071.3,0.6336]
[1760122273371,0.51714468,4071.7,4071.6,3.08963693]
[1760122273572,0.51714468,4071.7,4071.6,1.1065]
[1760122273894,4.40183116,4072.1,4071.1,2.45633107]
[1760122273895,0.51714468,4072.0,4071.8,0.6336]
[1760122274076,0.51714468,4071.9,4071.8,0.6336]
[1760122274473,0.51714468,4072.1,4071.8,0.6336]
[1760122274677,0.51714468,4072.0,4071.2,0.6336]
[1760122274883,0.52994087,4071.9,4070.9,0.6336]
[1760122275089,0.51714468,4071.8,4070.9,0.6336]
[1760122275384,0.51714468,4071.7,4070.9,0.6336]
[1760122275689,0.01279619,4071.9,4071.7,2.45597661]
[1760122275888,0.51714468,4072.7,4072.1,0.6336]
[1760122276066,0.64983116,4073.0,4072.1,0.6336]
[1760122276067,0.51714468,4072.6,4072.1,0.6336]
[1760122276266,0.51714468,4072.5,4071.9,0.6336]
[1760122276510,0.51714468,4072.4,4071.9,0.6336]
[1760122276708,0.51714468,4072.3,4071.7,0.6336]
[1760122277042,0.51714468,4072.5,4071.9,3.08944808]
[1760122277205,0.51714468,4072.6,4072.4,0.6336]
[1760122277372,0.51714468,4072.8,4072.6,2.45543186]
[1760122277575,3.139,4073.2,4072.7,0.6336]
[1760122277576,0.64983116,4073.2,4072.7,0.6336]
[1760122277891,1.29966232,4073.7,4072.7,0.6336]
[1760122277892,0.5170481,4073.1,4073.0,3.08879273]
[1760122278088,0.5170481,4073.2,4073.1,3.08873245]
[1760122278292,0.5170481,4073.5,4073.4,3.08855163]
[1760122278589,0.5170481,4073.6,4073.5,3.08849137]
[1760122278786,0.5170481,4073.6,4073.2,0.6336]
[1760122279101,0.5170481,4073.5,4072.9,2.4552493]
[1760122279302,0.5170481,4073.4,4073.3,0.756]
[1760122279718,0.5170481,4073.4,4073.3,0.6336]
[1760122280001,0.5180481,4073.4,4073.3,0.6336]
[1760122280307,1.92,4073.3,4072.0,0.002]
[1760122280520,0.646167,4072.1,4072.0,0.002]
[1760122280729,0.5170481,4072.1,4072.0,0.002]
[1760122282930,1.1632151,4072.1,4072.0,0.002]
[1760122283131,0.5170481,4072.1,4072.0,0.002]
[1760122283339,1.1632151,4072.1,4072.0,0.002]
[1760122283901,0.5170481,4072.1,4072.0,3.53779567]
[1760122284228,0.5170481,4072.4,4072.3,0.6336]
[1760122284861,1.1632151,4072.4,4072.0,0.002]
[1760122285024,1.1632151,4072.3,4072.0,0.002]
[1760122285222,0.5170481,4072.2,4072.0,0.002]
[1760122285555,0.5170481,4072.1,4072.0,0.002]
[1760122288627,4.2710481,4072.1,4072.0,0.002]
[1760122288927,0.5170481,4072.1,4072.0,0.002]
[1760122289134,4.2710481,4072.1,4072.0,0.002]
[1760122289334,4.28384429,4072.1,4072.0,0.002]
[1760122289534,5.14781798,4072.1,4072.0,0.002]
[1760122289740,4.2710481,4072.1,4072.0,0.002]
[1760122290063,4.28384429,4072.1,4072.0,0.002]
[1760122290246,4.40624429,4072.1,4072.0,0.002]
[1760122290456,0.65224429,4072.1,4072.0,0.002]
[1760122290627,4.40624429,4072.1,4072.0,0.002]
[1760122290829,4.84684429,4072.1,4072.0,0.002]
[1760122291134,4.3924481,4072.1,4072.0,0.002]
[1760122291354,5.04058694,4072.1,4072.0,0.002]
[1760122291555,1.16518694,4072.1,4072.0,0.002]
[1760122291733,0.5170481,4072.1,4072.0,0.6356]
[1760122291933,1.16518694,4072.1,4072.0,0.002]
[1760122292829,0.5170481,4072.1,4072.0,0.6356]
[1760122293366,0.5170481,4072.4,4072.1,0.6336]
[1760122293578,0.64813884,4072.7,4072.1,0.6336]
[1760122293579,0.5170481,4072.3,4072.1,0.6336]
[1760122293878,0.5170481,4072.2,4072.1,0.6336]
[1760122294169,0.5170481,4072.2,4072.0,0.1244]
[1760122294170,0.5170481,4072.2,4072.0,0.002]
[1760122294353,4.2690481,4072.1,4072.0,0.002]
[1760122295934,30.1224,4072.0,4071.5,0.002]
[1760122296057,0.2294,4071.6,4071.5,0.002]
[1760122296241,8.48124429,4071.6,4071.5,0.002]
[1760122296442,8.9069481,4071.6,4071.5,0.002]
[1760122296689,33.1049481,4071.6,4071.5,0.002]
[1760122296887,22.2459481,4071.6,4071.5,0.002]
[1760122297192,0.1224,4071.5,4070.0,0.1224]
[1760122297345,0.647486,4070.6,4070.0,0.1224]
[1760122297664,0.1224,4070.3,4069.6,0.1224]
[1760122297867,0.5170481,4070.2,4069.6,0.1224]
[1760122298180,0.5170481,4070.1,4069.0,0.4464]
[1760122298476,4.9215341,4070.0,4069.1,2.45753278]
[1760122298674,4.9215341,4070.0,4069.0,0.74831193]
[1760122298675,0.5170481,4069.9,4069.0,0.74831193]
[1760122298846,0.5170481,4069.9,4068.6,1.92]
[1760122298847,0.5170481,4069.9,4069.8,0.6336]
[1760122299046,1.92,4071.1,4070.1,2.45694208]
[1760122299047,0.5170481,4070.2,4070.1,2.45694208]
[1760122299248,0.5170481,4070.2,4070.1,3.09254208]
[1760122299444,0.5170481,4070.5,4070.2,0.6336]
[1760122299642,0.51819174,4070.4,4070.2,0.6336]
[1760122299861,0.51819174,4070.3,4070.1,0.6356]
[1760122300063,0.51819174,4070.2,4070.1,3.09254208]
[1760122300561,0.51819174,4070.4,4070.3,3.09042136]
[1760122300764,0.647486,4071.0,4070.9,3.09005925]
[1760122300965,0.647486,4071.0,4070.9,3.53645925]
[1760122300966,0.51871159,4071.0,4070.9,3.53645925]
[1760122301166,0.51871159,4071.0,4070.9,3.09005925]
[1760122301365,0.51871159,4071.0,4070.9,3.53645925]
[1760122302003,0.51871159,4071.0,4070.9,4.16032618]
[1760122302303,0.647486,4071.7,4071.6,3.08963693]
[1760122302599,0.51946458,4071.7,4071.6,3.53603693]
[1760122303867,0.001,4072.1,4072.0,3.08939567]
[1760122304064,0.5204926,4072.1,4072.0,3.08939567]
[1760122306320,0.5204926,4072.1,4072.0,4.13538076]
[1760122306512,0.001,4072.1,4072.0,6.03082281]
[1760122306877,0.001,4072.1,4072.0,9.78482281]
[1760122307498,0.001,4072.6,4072.5,5.00909416]
[1760122307746,0.001,4072.6,4072.5,26.42351065]
[1760122308029,0.001,4072.6,4072.5,13.64730835]
[1760122308237,0.001,4072.6,4072.5,13.76970835]
[1760122308396,0.001,4072.6,4072.5,11.72170835]
[1760122312035,0.001,4072.6,4072.5,7.96870835]
[1760122312235,0.001,4072.6,4072.5,13.76670835]
[1760122314000,0.001,4072.6,4072.5,7.96870835]
[1760122314206,0.001,4072.6,4072.5,11.71870835]
[1760122314441,0.001,4072.6,4072.5,9.79870835]
[1760122314625,0.001,4072.6,4072.5,8.71479416]
[1760122315153,0.001,4072.6,4072.5,9.34839416]
[1760122318246,0.001,4072.6,4072.5,9.22299416]
[1760122321076,0.001,4073.9,4073.8,3.08831058]
[1760122321236,0.001,4073.9,4073.8,6.83531058]
[1760122321441,0.001,4073.9,4073.8,10.14622021]
[1760122322780,0.001,4073.9,4073.8,6.39922021]
[1760122323091,0.001,4073.9,4073.8,10.14822021]
[1760122323397,0.68159299,4075.8,4074.1,0.6336]
[1760122323568,0.001,4076.0,4074.5,0.6336]
[1760122323756,0.001,4076.0,4075.7,0.6336]
[1760122324092,0.001,4076.0,4075.9,0.6336]
[1760122324297,0.001,4076.0,4075.9,3.08704586]
[1760122324472,0.001,4076.0,4075.9,3.54894586]
[1760122324907,0.001,4076.0,4075.9,3.57348031]
[1760122325205,0.001,4076.0,4075.9,1.0955]
[1760122325358,0.001,4076.0,4075.9,4.8435]
[1760122325563,0.001,4076.0,4075.9,6.83504586]
[1760122325889,0.001,4076.0,4075.9,0.6336]
[1760122326064,0.001,4076.0,4075.9,24.82936235]
[1760122326261,0.001,4076.0,4075.9,5.46894586]
[1760122326482,0.001,4076.0,4075.9,10.00818614]
[1760122326684,0.001,4076.0,4075.9,25.62160263]
[1760122327996,0.001,4076.0,4075.9,27.66560263]
[1760122328422,0.001,4076.0,4075.9,6.38358614]
[1760122328567,0.001,4076.0,4074.8,0.4619]
[1760122328768,0.5193108,4075.9,4074.8,0.4619]
[1760122328990,0.5193108,4075.8,4074.8,0.4619]
[1760122329188,0.5193108,4075.7,4074.8,4.2109]
[1760122329387,0.5193108,4075.6,4074.8,4.63199]
[1760122329587,0.5193108,4075.5,4074.8,4.2109]
[1760122329900,0.5193108,4075.4,4074.8,3.749]
[1760122330097,0.2299,4075.9,4074.7,2.45416733]
[1760122330098,0.5193108,4075.3,4074.7,2.45416733]
[1760122330300,0.5193108,4075.2,4074.1,2.45448347]
[1760122330598,1.32741467,4075.5,4074.1,2.45448347]
[1760122330599,0.5193108,4075.1,4074.2,5.668]
[1760122330817,0.5193108,4075.0,4074.1,0.4619]
[1760122330975,0.5193108,4074.9,4074.2,3.77254469]
[1760122331171,0.5193108,4074.8,4074.3,3.08800934]
[1760122331383,0.5193108,4074.7,4073.8,0.92900963]
[1760122331596,0.86331467,4075.1,4073.7,2.45476519]
[1760122331597,0.5193108,4074.6,4073.7,2.45476519]
[1760122331899,0.5193108,4074.5,4073.6,2.45478774]
[1760122332101,0.5193108,4074.4,4073.5,3.749]
[1760122332304,0.5193108,4074.3,4073.7,0.0245477]
[1760122332527,0.5193108,4074.2,4074.1,0.6336]
[1760122332681,0.5193108,4074.2,4074.1,3.08812983]
[1760122332878,0.5193108,4074.2,4074.1,0.6336]
[1760122333120,0.5193671,4074.2,4074.0,2.45458641]
[1760122333320,0.86331467,4074.8,4074.1,0.6336]
[1760122333490,0.51965245,4074.7,4073.7,0.6336]
[1760122333817,0.86331467,4074.0,4072.9,3.749]
[1760122334127,0.51965245,4073.9,4073.3,3.0886119]
[1760122334333,0.86331467,4074.4,4073.9,0.6336]
[1760122334514,0.51984393,4074.3,4074.2,2.45446958]
[1760122335078,0.51984393,4074.3,4074.2,0.6336]
[1760122335414,0.51984393,4074.3,4074.2,3.08806958]
[1760122336975,0.51984393,4074.3,4074.1,0.6336]
[1760122337178,0.51984393,4074.2,4074.1,3.08812983]
[1760122337604,0.51984393,4074.2,4074.0,0.6336]
[1760122337806,0.51984393,4074.1,4074.0,0.6336]
[1760122338045,0.51984393,4074.1,4074.0,3.57279243]
[1760122338340,0.51984393,4074.1,4074.0,5.91856072]
[1760122338495,0.51984393,4074.1,4074.0,6.04096072]
[1760122339644,0.86331467,4075.1,4074.9,0.6336]
[1760122339828,1.38497927,4075.0,4074.9,0.6336]
[1760122340008,0.5216646,4075.0,4074.9,0.6336]
[1760122340198,0.5216646,4075.0,4074.8,0.1224]
[1760122340404,0.5216646,4074.9,4074.8,0.1224]
[1760122340833,0.5216646,4074.9,4074.4,2.45429834]
[1760122340834,0.5216646,4074.9,4074.1,4.3796]
[1760122341001,0.86902809,4074.7,4074.5,0.1224]
[1760122341205,0.5216646,4074.6,4074.5,0.1224]
[1760122341825,1.39069269,4074.6,4074.5,0.1224]
[1760122342154,0.5216646,4074.6,4074.1,0.6336]
[1760122342447,1.29497201,4074.3,4073.9,0.1224]
[1760122342601,0.86836915,4074.1,4073.9,0.1224]
[1760122342797,0.5216646,4074.1,4073.9,0.1224]
[1760122343304,0.86843251,4074.1,4074.0,0.6336]
[1760122343633,0.86843251,4074.1,4074.0,15.1336]
[1760122343634,1.38949341,4074.1,4074.0,15.1336]
[1760122344005,0.5210609,4074.1,4074.0,15.1336]
[1760122344933,1.38983107,4074.1,4074.0,15.1336]
[1760122345136,0.52118665,4074.1,4074.0,19.57389008]
[1760122345336,0.52118665,4074.1,4074.0,19.23619008]
[1760122345578,0.52118665,4074.1,4074.0,19.69629008]
[1760122346349,0.52118665,4074.1,4074.0,15.256]
[1760122346676,0.52118665,4074.1,4074.0,0.1224]
[1760122346857,0.52118665,4074.1,4073.6,0.002]
[1760122347164,1.39115692,4074.0,4073.6,0.002]
[1760122347469,1.29497201,4073.7,4073.6,0.002]
[1760122347670,1.92,4073.6,4073.2,0.002]
[1760122347869,1.7328831,4073.3,4073.2,0.002]
[1760122348071,2.25406975,4073.3,4073.2,0.002]
[1760122348391,0.95158665,4073.3,4073.2,0.002]
[1760122348538,0.95158665,4073.3,4071.8,14.5]
[1760122348850,0.8693846,4072.3,4071.8,14.5]
[1760122349039,0.52118665,4072.2,4071.8,16.95590858]
[1760122349237,0.52118665,4072.2,4071.9,0.6336]
[1760122349460,0.52118665,4072.2,4071.8,14.5]
[1760122349772,0.52118665,4072.2,4071.9,0.6336]
[1760122350073,0.95158665,4072.2,4071.6,0.002]
[1760122350269,1.81909191,4072.2,4071.6,0.002]
[1760122350656,0.95158665,4072.2,4071.6,0.002]
[1760122350975,0.52118665,4072.2,4071.6,0.002]
[1760122351135,1.81824482,4072.2,4071.6,0.6356]
[1760122351337,0.95158665,4072.2,4071.6,0.6356]
[1760122351871,0.52118665,4072.2,4071.6,0.6356]
[1760122352171,0.52118665,4072.2,4071.9,0.6336]
[1760122352370,0.52118665,4072.2,4072.0,0.02455795]
[1760122352750,0.52118665,4072.2,4071.9,0.6336]
[1760122353262,0.52118665,4072.5,4071.8,3.08951453]
[1760122353576,1.3040769,4073.0,4072.4,0.6336]
[1760122353577,0.52118665,4072.6,4072.4,0.6336]
[1760122353738,0.52118665,4072.5,4072.4,0.6336]
[1760122354073,0.52118665,4072.8,4072.1,0.002]
[1760122354273,0.52118665,4072.7,4072.1,0.002]
[1760122354579,0.52118665,4072.6,4072.4,2.45549468]
[1760122354786,0.52118665,4072.8,4072.5,0.6336]
[1760122354956,3.747,4072.9,4072.3,0.6336]
[1760122354957,0.52118665,4072.7,4072.3,0.6336]
[1760122355279,0.52118665,4072.6,4072.3,0.6336]
[1760122355441,0.52118665,4072.5,4072.1,0.002]
[1760122355638,4.26818665,4072.8,4072.1,0.002]
[1760122355837,0.52118665,4072.7,4072.1,0.002]
[1760122356074,0.52118665,4072.6,4072.1,0.002]
[1760122356280,0.52118665,4072.5,4072.1,0.002]
[1760122356487,0.52118665,4072.4,4072.1,0.002]
[1760122356781,0.52118665,4072.3,4072.1,0.002]
[1760122357083,0.52118665,4072.2,4072.1,0.002]
[1760122357380,0.95158665,4072.2,4072.1,0.002]
[1760122358175,0.52118665,4072.2,4072.1,0.002]
[1760122359769,0.52118665,4072.6,4072.2,0.6336]
[1760122359945,0.52118665,4072.5,4072.1,0.6356]
[1760122360143,0.52118665,4072.4,4072.1,0.6356]
[1760122360348,0.52118665,4072.3,4072.1,0.6356]
[1760122360573,0.52118665,4072.5,4072.1,0.6356]
[1760122360746,0.52118665,4072.4,4072.1,3.09132288]
[1760122360942,0.52118665,4072.3,4072.1,0.6356]
[1760122361151,0.52118665,4072.5,4072.1,0.6356]
[1760122361382,0.52118665,4072.5,4072.1,0.002]
[1760122361383,0.52118665,4072.4,4072.1,0.002]
[1760122361568,3.746,4072.6,4072.1,0.002]
[1760122361569,0.52118665,4072.3,4072.1,0.002]
[1760122361754,0.52118665,4072.2,4072.1,0.002]
[1760122362481,0.52118665,4072.2,4072.1,3.09133536]
[1760122362776,0.52118665,4072.6,4072.4,0.6336]
[1760122362979,3.746,4072.8,4072.1,2.1185434]
[1760122362980,0.52118665,4072.5,4072.1,0.002]
[1760122363151,3.746,4072.8,4072.1,0.002]
[1760122363152,0.52118665,4072.7,4072.1,0.002]
[1760122363352,0.52118665,4072.6,4072.1,0.002]
[1760122363551,0.52118665,4072.5,4072.1,0.002]
[1760122363774,0.52118665,4072.4,4072.1,0.002]
[1760122363976,0.95158665,4072.4,4072.1,0.002]
[1760122364293,0.52118665,4072.7,4072.1,0.002]
[1760122364496,0.4304,4072.4,4072.1,0.002]
[1760122364695,0.52118665,4072.3,4072.1,0.002]
[1760122365299,0.95158665,4072.3,4072.1,0.002]
[1760122365469,0.52118665,4072.2,4072.1,0.002]
[1760122365890,0.4304,4072.3,4072.1,0.002]
[1760122366295,0.95158665,4072.2,4072.1,0.002]
[1760122367305,4.69658665,4072.2,4072.1,0.002]
[1760122367973,5.56312349,4072.2,4072.1,0.002]
[1760122368519,4.69658665,4072.2,4072.1,0.002]
[1760122369519,0.95158665,4072.2,4072.1,0.002]
[1760122369676,4.69658665,4072.2,4072.1,0.002]
[1760122369875,6.00066355,4072.2,4072.1,0.002]
[1760122370179,1.92,4072.1,4071.6,0.002]
[1760122370377,0.2329,4071.7,4071.6,0.002]
[1760122370574,4.49808665,4071.7,4071.6,0.002]
[1760122370774,6.97348665,4071.7,4071.6,0.002]
[1760122370988,0.75408665,4071.7,4071.6,0.002]
[1760122371309,2.48516783,4071.7,4071.6,0.002]
[1760122371474,5.99626783,4071.7,4071.6,0.002]